bitfinex-derivatives/quotes_ETHF0:USTF0_20241022
["timestamp","ask_amount","ask_price","bid_price","bid_amount"]
[1729592580052,4.3078,2631.5,2631.4,0.38019]
[1729592580848,4.68798,2631.5,2631.4,0.38019]
[1729592583444,4.3078,2631.5,2631.4,1.48019]
[1729592584243,4.68798,2631.5,2631.4,1.48019]
[1729592584845,1.1,2631.5,2631.4,1.48019]
[1729592585644,3.59162883,2632.0,2631.4,1.1]
[1729592585645,0.38532883,2632.0,2631.4,1.1]
[1729592585843,1.48012,2631.9,2631.8,1.1]
[1729592586042,3.2078,2632.1,2631.8,1.1]
[1729592586242,1.1,2632.0,2631.9,1.1]
[1729592586538,1.1,2632.0,2631.8,1.48012]
[1729592586747,0.38012,2631.9,2631.8,1.48012]
[1729592587142,3.2078,2632.1,2631.8,1.1]
[1729592587343,4.6879,2632.1,2632.0,1.48011]
[1729592587748,3.2078,2632.1,2632.0,1.48011]
[1729592588152,1.1,2632.2,2632.1,0.38009]
[1729592588353,0.38008,2632.2,2632.1,1.1]
[1729592588553,1.48007,2632.3,2632.2,0.38008]
[1729592588759,1.48006,2632.3,2632.2,1.1]
[1729592589048,1.48006,2632.3,2632.2,1.48008]
[1729592589250,0.38005,2632.4,2632.3,0.38005]
[1729592589444,0.38005,2632.4,2632.2,1.48007]
[1729592589445,0.38006,2632.3,2632.2,1.48007]
[1729592589753,0.38006,2632.4,2632.3,0.38006]
[1729592589951,3.2078,2632.5,2632.4,0.38005]
[1729592590146,1.1,2632.7,2632.4,1.1]
[1729592590347,1.1,2632.7,2632.6,1.48002]
[1729592590555,0.38,2632.8,2632.6,1.48002]
[1729592590761,0.38,2632.8,2632.7,1.1]
[1729592591152,1.48,2632.8,2632.7,1.1]
[1729592591660,1.1,2632.8,2632.7,1.1]
[1729592591857,1.47999,2632.8,2632.7,1.1]
[1729592593863,3.58778,2632.9,2632.7,1.47999]
[1729592594160,1.1,2632.8,2632.7,1.48]
[1729592594861,4.3078,2632.9,2632.7,1.48]
[1729592595065,1.47999,2632.8,2632.7,1.48]
[1729592595278,1.47999,2632.8,2632.7,1.1]
[1729592595859,3.2078,2632.9,2632.7,1.1]
[1729592596166,0.38,2632.7,2632.6,1.1]
[1729592596355,0.38,2632.7,2632.1,4.15802]
[1729592596356,1.1,2632.6,2632.1,3.2078]
[1729592596557,3.2078,2632.5,2632.2,1.1]
[1729592596864,1.1,2632.3,2632.0,0.3801]
[1729592597059,3.2078,2632.5,2631.7,3.2078]
[1729592597263,0.38013,2631.8,2631.7,3.2078]
[1729592597459,0.38016,2631.6,2631.5,3.2078]
[1729592597659,1.48016,2631.6,2631.5,4.3078]
[1729592598259,1.48016,2631.6,2631.3,0.3802]
[1729592598260,2.37,2631.9,2631.2,3.58802]
[1729592598461,2.37,2631.7,2630.9,5.5778]
[1729592598964,0.38021,2631.3,2631.2,0.38022]
[1729592599161,2.37,2631.7,2631.2,0.38022]
[1729592599362,0.3802,2631.4,2631.2,0.38022]
[1729592599557,0.3802,2631.4,2631.2,0.38021]
[1729592599960,0.3802,2631.4,2631.3,0.38021]
[1729592600168,0.3802,2631.4,2631.2,0.38021]
[1729592601268,0.38018,2631.5,2631.4,0.38018]
[1729592601465,3.2078,2631.8,2631.2,3.2078]
[1729592601771,0.38016,2631.7,2631.5,0.38017]
[1729592601969,3.2078,2631.8,2631.5,0.38017]
[1729592602273,0.38016,2631.7,2631.5,0.38017]
[1729592602767,3.2078,2631.8,2631.2,3.2078]
[1729592602968,3.2078,2631.8,2631.6,0.38015]
[1729592602969,3.58794,2631.8,2631.6,0.38015]
[1729592603367,0.38016,2631.7,2631.5,0.38017]
[1729592603768,3.58794,2631.8,2631.6,0.38015]
[1729592603962,3.2078,2631.8,2631.7,0.38015]
[1729592604464,3.58793,2631.8,2631.7,0.38015]
[1729592604666,3.2078,2631.8,2631.3,2.37]
[1729592604866,0.38015,2631.7,2631.6,0.38016]
[1729592606470,3.2078,2631.8,2631.3,2.37]
[1729592606668,0.38013,2631.9,2631.7,0.38014]
[1729592606863,0.38013,2631.9,2631.8,0.38013]
[1729592607068,0.38011,2632.0,2631.9,0.38012]
[1729592607570,3.5879,2632.1,2631.9,0.38012]
[1729592607878,3.2078,2632.1,2632.0,0.38011]
[1729592608775,3.2078,2632.5,2631.9,2.37]
[1729592609075,0.38006,2632.4,2632.3,0.38006]
[1729592609769,3.2078,2632.5,2632.4,0.38005]
[1729592610169,3.58783,2632.5,2632.4,0.38005]
[1729592610981,3.2078,2632.5,2631.9,2.37]
[1729592611180,3.2078,2632.5,2631.9,3.32028]
[1729592611181,3.58784,2632.5,2631.9,3.32028]
[1729592611371,3.2078,2632.5,2632.1,2.37]
[1729592611672,0.38003,2632.6,2632.1,5.5778]
[1729592611870,0.38001,2632.7,2632.1,6.52801]
[1729592612175,5.5778,2633.0,2632.1,4.15801]
[1729592612372,0.37998,2632.9,2632.8,0.37999]
[1729592612679,3.59151161,2633.0,2632.7,0.38]
[1729592612976,3.59151161,2633.0,2632.3,3.32014]
[1729592613170,0.37999,2632.8,2632.7,0.38]
[1729592613571,3.59151161,2633.0,2632.1,6.52801]
[1729592613572,5.96151161,2633.0,2632.1,6.52801]
[1729592613772,2.37,2632.5,2632.1,3.2078]
[1729592613977,2.37,2632.5,2632.3,0.38006]
[1729592613978,0.38005,2632.4,2632.3,0.38006]
[1729592614277,0.38005,2632.4,2631.9,2.37]
[1729592614278,0.38004,2632.5,2632.4,0.38004]
[1729592614475,0.38004,2632.5,2632.0,4.15807]
[1729592614674,0.38004,2632.5,2632.3,0.38005]
[1729592614871,2.37,2632.7,2632.0,3.2078]
[1729592615080,0.38005,2632.4,2632.3,0.38006]
[1729592615267,0.38004,2632.5,2632.3,0.38006]
[1729592615571,0.38004,2632.5,2631.9,3.32029]
[1729592615776,0.38004,2632.5,2632.4,0.38005]
[1729592616772,0.38004,2632.5,2632.3,0.38005]
[1729592616972,0.38004,2632.5,2632.0,3.2078]
[1729592617178,0.38004,2632.5,2632.4,0.38005]
[1729592617675,0.38004,2632.5,2631.9,3.32029]
[1729592617676,5.95908864,2632.7,2631.9,3.32029]
[1729592617977,0.38005,2632.4,2632.3,0.38006]
[1729592618182,0.38004,2632.5,2632.3,0.38006]
[1729592618475,0.38004,2632.5,2631.9,2.37]
[1729592618778,5.95908864,2632.7,2631.9,2.37]
[1729592619176,0.38004,2632.5,2632.4,0.38005]
[1729592620075,6.1684,2632.5,2631.7,5.6668]
[1729592620276,0.38008,2632.2,2632.1,0.38009]
[1729592620780,2.37,2632.3,2631.7,3.2078]
[1729592620981,0.3801,2632.1,2631.7,3.2078]
[1729592621177,0.3801,2632.1,2632.0,0.38011]
[1729592621379,3.2078,2632.4,2631.7,5.5778]
[1729592621678,0.38008,2632.2,2632.1,0.38009]
[1729592622274,0.38008,2632.2,2631.7,5.5778]
[1729592622275,3.2078,2632.4,2631.7,5.5778]
[1729592622479,3.2078,2632.4,2631.7,6.52816]
[1729592622677,0.38008,2632.2,2632.1,0.38008]
[1729592623479,3.2078,2632.4,2632.3,0.38006]
[1729592623480,3.58785,2632.4,2632.3,0.38006]
[1729592623875,3.2078,2632.4,2632.3,0.38006]
[1729592624882,3.2078,2633.0,2632.8,0.37998]
[1729592625084,3.2078,2633.0,2632.3,3.2078]
[1729592625284,3.2078,2633.0,2632.7,0.38]
[1729592625285,0.38,2632.8,2632.7,0.38]
[1729592625581,0.37998,2632.9,2632.8,0.37999]
[1729592626184,0.38,2632.8,2632.7,0.38]
[1729592626576,0.37998,2632.9,2632.8,0.37999]
[1729592627386,3.2078,2633.0,2632.4,0.95011]
[1729592627591,0.37998,2632.9,2632.8,0.37998]
[1729592628091,3.58777,2633.0,2632.9,0.37998]
[1729592628385,3.2078,2633.0,2632.3,5.5778]
[1729592628780,0.38,2632.8,2632.7,0.38]
[1729592628980,0.37998,2632.9,2632.8,0.37998]
[1729592629186,3.2078,2633.0,2632.3,5.5778]
[1729592629492,0.37999,2632.9,2632.8,0.37998]
[1729592629883,3.2078,2633.0,2632.4,0.95013]
[1729592630185,0.37998,2632.9,2632.8,0.37999]
[1729592630389,3.2078,2633.0,2632.3,5.5778]
[1729592630687,0.38,2632.8,2632.7,0.38]
[1729592631283,0.37998,2632.9,2632.8,0.37998]
[1729592631485,0.38,2632.8,2632.7,0.38]
[1729592631684,0.37999,2632.9,2632.4,1.33018]
[1729592631886,0.37999,2632.8,2632.7,0.38]
[1729592632087,0.37999,2632.8,2632.3,5.5778]
[1729592632088,3.2078,2633.0,2632.3,5.5778]
[1729592632286,0.37998,2632.9,2632.8,0.37998]
[1729592632484,3.2078,2633.0,2632.4,0.95013]
[1729592632686,0.37998,2632.9,2632.8,0.37998]
[1729592632892,3.2078,2633.0,2632.5,0.95009]
[1729592632893,3.58777,2633.0,2632.9,0.37998]
[1729592633388,0.37998,2632.9,2632.8,0.37998]
[1729592633583,3.58777,2633.0,2632.8,0.37998]
[1729592633789,3.58777,2633.0,2632.5,0.95009]
[1729592633998,3.58777,2633.0,2632.8,0.37998]
[1729592634187,3.2078,2633.0,2632.5,0.95009]
[1729592634499,3.58777,2633.0,2632.6,0.38002]
[1729592634684,3.2078,2633.0,2632.5,3.32009]
[1729592634889,3.2078,2633.0,2632.9,0.37998]
[1729592637491,0.37994,2633.2,2633.1,0.37993]
[1729592637682,0.37993,2633.3,2633.2,0.37993]
[1729592638086,0.37993,2633.2,2632.8,0.37999]
[1729592638290,0.37992,2633.3,2633.2,0.37992]
[1729592638494,0.37992,2633.3,2633.1,0.37993]
[1729592638694,0.37992,2633.3,2633.2,0.37993]
[1729592638888,2.37,2633.3,2632.7,0.19139547]
[1729592639095,0.38844308,2633.6,2633.0,2.37]
[1729592639289,3.2078,2634.3,2633.5,2.37]
[1729592639589,3.2078,2634.3,2633.6,0.37987]
[1729592639590,3.31948,2634.2,2633.6,0.37987]
[1729592639791,3.31948,2634.2,2633.5,2.37]
[1729592639792,2.37,2634.2,2633.5,2.37]
[1729592639993,2.37,2634.2,2633.6,0.37987]
[1729592640296,2.37,2634.2,2633.5,2.37]
[1729592640489,0.37984,2633.9,2633.7,0.37985]
[1729592640795,2.37,2634.2,2633.5,2.37]
[1729592641005,0.37982,2634.0,2633.8,0.37984]
[1729592641592,0.37982,2634.0,2633.5,2.37]
[1729592642193,0.37981,2634.1,2634.0,0.37981]
[1729592642497,3.60044583,2634.3,2633.7,2.37]
[1729592642686,0.3798,2634.1,2634.0,0.37981]
[1729592643000,0.3798,2634.1,2633.9,2.74982]
[1729592643494,0.37979,2634.2,2633.7,2.74985]
[1729592643697,3.60044583,2634.3,2633.7,2.37]
[1729592643996,0.37981,2634.1,2633.9,0.37983]
[1729592644997,0.37981,2634.1,2633.8,0.37984]
[1729592645198,0.37981,2634.1,2633.7,2.37]
[1729592645499,3.60044583,2634.3,2633.7,2.37]
[1729592645688,0.37982,2634.0,2633.8,0.37984]
[1729592647293,0.37983,2633.9,2633.8,0.37984]
[1729592647700,0.37985,2633.8,2633.7,2.74986]
[1729592648096,4.54990583,2634.3,2633.5,2.37]
[1729592648294,0.37987,2633.7,2633.6,0.37987]
[1729592648500,0.37987,2633.7,2633.5,2.74988]
[1729592648803,0.37985,2633.8,2633.6,0.37987]
[1729592649395,0.37985,2633.8,2633.7,0.37986]
[1729592649904,0.37981,2634.1,2633.9,0.37982]
[1729592650503,0.37979,2634.2,2634.0,0.37981]
[1729592651210,3.60044583,2634.3,2634.0,0.37981]
[1729592651211,0.3798,2634.1,2634.0,0.37981]
[1729592651901,0.37981,2634.1,2633.9,0.37982]
[1729592652507,3.60044583,2634.3,2633.7,2.37]
[1729592652704,0.37983,2634.0,2633.8,0.37984]
[1729592652909,3.60044583,2634.3,2633.8,0.37984]
[1729592653105,3.60044583,2634.3,2633.7,2.37]
[1729592653407,0.37981,2634.1,2634.0,0.37982]
[1729592653597,3.60044583,2634.3,2634.0,0.37981]
[1729592653798,0.3798,2634.1,2634.0,0.37981]
[1729592655007,0.37981,2634.1,2633.8,0.37985]
[1729592655207,0.37981,2634.1,2634.0,0.37981]
[1729592655911,3.60044583,2634.3,2633.7,2.37]
[1729592656208,0.37983,2634.0,2633.8,0.37985]
[1729592656406,0.37983,2634.0,2633.7,2.37]
[1729592656703,0.37983,2634.0,2633.9,0.37983]
[1729592657207,0.37987,2633.6,2633.5,3.2078]
[1729592657402,3.31969,2633.6,2632.9,3.2968]
[1729592657603,0.37996,2633.0,2632.9,3.2078]
[1729592657804,0.37995,2633.2,2633.0,0.37995]
[1729592658010,2.37,2633.6,2632.9,3.2078]
[1729592658198,3.2078,2633.7,2633.0,2.37]
[1729592658401,0.37976,2634.4,2633.9,0.37982]
[1729592658706,0.3797,2634.9,2634.6,0.37972]
[1729592658907,3.2078,2634.7,2634.5,0.37973]
[1729592659105,3.2078,2634.7,2634.4,2.37]
[1729592659306,3.2078,2634.7,2634.5,0.37973]
[1729592659515,3.2078,2634.7,2634.5,0.37974]
[1729592659808,3.2078,2634.7,2634.4,2.37]
[1729592660010,0.37967,2635.0,2634.6,0.37973]
[1729592660205,0.37967,2635.0,2634.4,2.37]
[1729592660403,0.37971,2634.8,2634.4,2.37]
[1729592660707,0.37968,2635.0,2634.7,0.37971]
[1729592661012,3.2078,2635.1,2634.4,2.37]
[1729592661207,0.37971,2634.8,2634.5,0.37974]
[1729592661405,3.2078,2635.1,2634.4,2.37]
[1729592661608,3.2078,2635.1,2634.6,0.37972]
[1729592661907,0.37971,2634.8,2634.6,0.37972]
[1729592662108,3.2078,2635.1,2634.6,0.37972]
[1729592662308,0.37971,2634.8,2634.6,0.37972]
[1729592663105,0.37969,2634.9,2634.7,0.37971]
[1729592663409,3.2078,2635.1,2634.4,2.37]
[1729592663802,0.37972,2634.7,2634.5,0.37974]
[1729592664011,0.37971,2634.8,2634.6,0.37972]
[1729592664206,3.2078,2635.1,2634.4,2.37]
[1729592664207,0.37972,2634.7,2634.5,0.37974]
[1729592665110,0.37971,2634.8,2634.6,0.37972]
[1729592665808,0.37971,2634.8,2634.7,2.37]
[1729592668411,7.003,2634.8,2634.0,2.37]
[1729592668616,2.37,2634.9,2634.0,2.37]
[1729592668617,0.3798,2634.1,2634.0,2.37]
[1729592668822,0.37979,2634.2,2634.0,2.74981]
[1729592669406,3.2078,2634.4,2634.0,2.37]
[1729592669616,3.19517,2635.3,2634.5,0.37974]
[1729592669617,0.37972,2634.7,2634.5,0.37974]
[1729592669820,3.2078,2635.0,2634.6,2.37]
[1729592670011,0.37972,2634.7,2634.6,2.37]
[1729592671317,0.37972,2634.7,2634.6,2.74973]
[1729592671521,3.58752,2634.7,2634.6,2.37]
[1729592672218,3.58752,2634.7,2634.6,2.74973]
[1729592673430,3.2078,2634.7,2634.4,2.37]
[1729592673624,0.37973,2634.6,2634.4,2.74975]
[1729592674122,3.2078,2634.7,2634.2,2.37]
[1729592674311,0.37974,2634.6,2634.2,2.37]
[1729592674518,3.2078,2634.7,2634.2,2.37]
[1729592674519,3.58752,2634.7,2634.2,2.37]
[1729592674726,3.58752,2634.7,2634.5,0.37973]
[1729592675622,0.37973,2634.6,2634.4,0.37975]
[1729592675824,0.37973,2634.6,2634.2,2.37]
[1729592676123,3.58753,2634.7,2634.5,0.37974]
[1729592676327,0.37973,2634.6,2634.5,0.37974]
[1729592678726,3.2078,2634.7,2634.2,2.37]
[1729592679028,3.58752,2634.7,2634.6,0.37973]
[1729592679729,3.58752,2634.7,2634.5,0.37973]
[1729592680025,0.37974,2634.6,2634.5,0.37974]
[1729592680527,0.37973,2634.6,2634.5,0.37974]
[1729592680719,0.37976,2634.4,2634.3,0.37977]
[1729592680916,3.2078,2634.7,2634.3,0.37977]
[1729592681120,0.37975,2634.5,2634.0,2.37]
[1729592681321,0.37975,2634.5,2634.4,0.37976]
[1729592681725,0.37974,2634.6,2634.1,0.3798]
[1729592681931,0.37974,2634.6,2634.5,0.37974]
[1729592682525,0.37974,2634.6,2634.0,3.31953]
[1729592682829,0.37975,2634.5,2634.4,0.37975]
[1729592683023,3.2078,2634.7,2634.0,2.37]
[1729592683224,3.58781965,2634.7,2634.0,2.37]
[1729592683437,0.37977,2634.4,2634.2,0.37977]
[1729592683630,0.37977,2634.3,2634.0,2.37]
[1729592683838,3.58781965,2634.7,2634.0,2.37]
[1729592684140,0.37979,2634.2,2634.1,0.37979]
[1729592684629,0.37978,2634.3,2634.2,0.37978]
[1729592685032,0.37979,2634.2,2634.1,0.37979]
[1729592685235,4.53712965,2634.7,2634.0,2.37]
[1729592685430,0.37978,2634.3,2634.2,0.37978]
[1729592687237,3.796,2634.3,2633.8,5.5778]
[1729592687436,0.37983,2634.0,2633.9,0.37982]
[1729592688632,0.37983,2634.0,2633.5,3.2078]
[1729592688633,9.3746,2634.0,2633.5,3.2078]
[1729592688833,0.37987,2633.7,2633.6,0.37987]
[1729592689039,0.37987,2633.6,2633.5,3.58768]
[1729592689232,0.37988,2633.6,2633.5,0.37989]
[1729592689433,0.37989,2633.5,2633.4,0.37989]
[1729592689630,0.37987,2633.7,2633.3,0.37992]
[1729592689830,0.37987,2633.6,2633.5,0.37988]
[1729592690235,0.37989,2633.5,2633.4,0.37989]
[1729592690634,0.37988,2633.6,2633.5,0.37988]
[1729592691237,6.90719796,2634.0,2633.2,9.55042665]
[1729592691634,0.37988,2633.6,2633.5,0.37988]
[1729592692235,0.3799,2633.5,2633.4,0.3799]
[1729592692440,0.37989,2633.6,2633.5,0.37988]
[1729592692640,0.37987,2633.7,2633.6,0.37987]
[1729592692835,0.37984,2633.9,2633.8,0.37984]
[1729592693043,4.17664,2633.9,2633.8,0.37984]
[1729592693242,4.17664,2633.9,2633.4,0.94977]
[1729592693243,3.7968,2633.9,2633.4,0.94977]
[1729592693543,0.37985,2633.8,2633.7,0.37985]
[1729592694045,3.7968,2633.8,2633.7,0.37985]
[1729592695139,7.38445,2633.8,2633.7,0.37985]
[1729592696042,7.38446,2633.8,2633.4,0.3799]
[1729592696243,0.37986,2633.7,2633.6,0.37987]
[1729592697234,3.58765,2633.8,2633.7,0.37986]
[1729592697443,3.2078,2633.8,2633.3,2.37]
[1729592697644,0.37987,2633.7,2633.6,0.37987]
[1729592698043,3.58765,2633.8,2633.7,0.37986]
[1729592699346,0.37986,2633.7,2633.6,0.37987]
[1729592699548,3.58765,2633.8,2633.7,0.37986]
[1729592699747,3.58765,2633.8,2633.3,2.37]
[1729592699748,3.2078,2633.8,2633.3,2.37]
[1729592699943,3.58765,2633.8,2633.7,0.37986]
[1729592700250,3.2078,2633.8,2633.7,0.37986]
[1729592701744,3.2078,2634.2,2634.1,0.3798]
[1729592702347,3.58759,2634.2,2634.1,0.3798]
[1729592702752,0.3798,2634.1,2634.0,0.3798]
[1729592703251,3.7968,2634.1,2633.3,0.089]
[1729592703449,0.37986,2633.7,2633.6,0.37987]
[1729592705160,3.2078,2634.2,2634.1,0.3798]
[1729592706154,3.58759,2634.2,2634.1,0.3798]
[1729592706454,3.2078,2634.2,2634.1,0.3798]
[1729592706656,3.2078,2634.7,2634.6,0.37973]
[1729592706853,3.58747,2635.1,2634.9,0.37968]
[1729592707355,3.2078,2635.1,2634.6,2.37]
[1729592707549,3.2078,2635.1,2634.7,0.37971]
[1729592707550,2.37,2635.0,2634.7,0.37971]
[1729592707750,2.37,2635.0,2634.4,3.2078]
[1729592707751,2.74968,2635.0,2634.5,0.37974]
[1729592707954,0.37968,2635.0,2634.8,0.37969]
[1729592708257,3.2078,2635.1,2634.4,5.5778]
[1729592708652,3.2078,2635.1,2634.4,6.52718]
[1729592708850,3.58747,2635.1,2634.9,0.37968]
[1729592709254,3.2078,2635.1,2634.8,0.3797]
[1729592709570,0.37969,2634.9,2634.4,5.5778]
[1729592709767,0.37968,2635.0,2634.4,5.5778]
[1729592709973,0.37968,2635.0,2634.8,0.37969]
[1729592710469,0.3797,2634.9,2634.3,0.94942]
[1729592710665,0.37974,2634.6,2634.4,0.37975]
[1729592710968,3.2078,2634.8,2634.2,2.37]
[1729592711179,0.37971,2634.8,2634.6,0.37972]
[1729592711369,0.37971,2634.8,2634.7,0.37972]
[1729592711668,2.37,2635.0,2634.2,3.31946]
[1729592711864,0.37971,2634.8,2634.2,3.31946]
[1729592712065,0.37972,2634.7,2634.6,0.37973]
[1729592712259,0.37971,2634.8,2634.6,0.37973]
[1729592712469,2.75765554,2635.0,2634.2,3.31946]
[1729592712675,2.75765554,2635.0,2634.0,3.31955]
[1729592712676,3.2078,2634.7,2634.0,3.31955]
[1729592712977,5.5778,2634.4,2633.6,0.37987]
[1729592713267,0.37979,2634.2,2634.1,0.3798]
[1729592713461,0.37979,2634.2,2633.6,0.37987]
[1729592713662,5.5778,2634.4,2633.5,5.5778]
[1729592713871,0.37982,2634.0,2633.9,0.37983]
[1729592714261,3.58761,2634.1,2633.9,0.37983]
[1729592714673,0.37982,2634.0,2633.8,0.37984]
[1729592714876,0.37982,2634.0,2633.9,0.37983]
[1729592715067,3.58761,2634.1,2634.0,0.37982]
[1729592715468,3.58761,2634.1,2633.5,6.52751]
[1729592715769,3.58761,2634.1,2633.9,0.37982]
[1729592715977,3.58761,2634.1,2634.0,0.37982]
[1729592716566,3.2078,2634.1,2633.8,0.37983]
[1729592716872,0.37984,2633.9,2633.5,3.2078]
[1729592717065,0.37984,2633.9,2633.8,0.37985]
[1729592717269,0.37982,2634.0,2633.9,0.37983]
[1729592717468,0.37984,2633.9,2633.6,0.37987]
[1729592717666,0.37984,2633.9,2633.5,3.2078]
[1729592717667,0.37984,2633.9,2633.8,0.37985]
[1729592717868,0.37985,2633.8,2633.6,0.37986]
[1729592718071,3.2078,2633.8,2633.5,0.37988]
[1729592718268,3.2078,2633.8,2633.1,3.31986]
[1729592718472,3.58765,2633.8,2633.7,0.37986]
[1729592718779,3.2078,2633.8,2633.7,0.37986]
[1729592719075,0.37984,2633.9,2633.7,0.37986]
[1729592719582,2.37,2634.1,2633.3,3.31978]
[1729592719872,2.37,2634.1,2633.0,3.2078]
[1729592719873,0.37986,2633.8,2633.6,0.37987]
[1729592720072,3.2078,2633.9,2633.6,0.37987]
[1729592720278,3.2078,2633.9,2633.2,0.94984]
[1729592720279,0.37986,2633.8,2633.2,0.94984]
[1729592720672,0.37986,2633.8,2633.6,0.37986]
[1729592721070,3.58764,2633.9,2633.8,0.37985]
[1729592721375,0.37982,2634.0,2633.9,0.37983]
[1729592721575,4.17662,2634.0,2633.9,0.37983]
[1729592721871,4.17662,2634.0,2633.2,1.03884]
[1729592721872,0.37986,2633.8,2633.6,0.37987]
[1729592722377,0.37986,2633.8,2633.2,0.94984]
[1729592722577,0.37986,2633.8,2633.7,0.37986]
[1729592723071,2.37,2633.9,2633.2,0.94984]
[1729592723268,0.37992,2633.3,2633.2,0.37993]
[1729592723571,3.2078,2633.5,2633.0,3.2078]
[1729592723777,3.2078,2633.5,2633.4,0.3799]
[1729592726471,3.58769,2633.5,2633.4,0.3799]
[1729592727170,3.2078,2633.5,2633.4,0.3799]
[1729592727574,0.37985,2633.8,2633.4,3.7976]
[1729592727884,0.37985,2633.8,2633.3,3.31977]
[1729592728377,0.37985,2633.8,2633.7,0.37986]
[1729592728770,0.37991,2633.4,2633.2,0.37992]
[1729592728967,0.37988,2633.6,2633.5,0.37988]
[1729592729168,0.37986,2633.7,2633.5,0.37988]
[1729592729578,0.37986,2633.7,2633.6,0.37987]
[1729592729983,3.2078,2633.9,2633.1,0.94986]
[1729592730185,2.75303021,2634.0,2632.8,0.37998]
[1729592730186,0.37997,2633.0,2632.8,0.37998]
[1729592730374,5.5778,2633.2,2632.8,0.37998]
[1729592730571,0.37998,2632.9,2632.8,0.37998]
[1729592730980,2.37,2633.0,2632.4,4.15792]
[1729592730981,0.37998,2633.0,2632.5,0.95009]
[1729592731181,0.37995,2633.1,2632.6,0.95005]
[1729592731377,0.37995,2633.1,2633.0,0.37995]
[1729592731778,3.58774,2633.2,2633.1,0.37995]
[1729592732381,3.2078,2633.2,2633.1,0.37995]
[1729592732978,3.58773,2633.2,2633.1,0.37995]
[1729592733579,3.2078,2633.2,2633.1,0.37995]
[1729592734583,0.37989,2633.5,2633.1,3.7976]
[1729592734783,0.37989,2633.5,2633.4,0.3799]
[1729592735687,2.74988,2633.6,2633.4,0.37989]
[1729592735883,3.2078,2633.7,2633.6,0.37987]
[1729592736190,3.2078,2633.7,2632.8,0.089]
[1729592736191,0.94982,2633.3,2632.8,0.089]
[1729592736387,0.94982,2633.3,2632.4,0.95011]
[1729592736388,3.2078,2633.0,2632.4,0.95011]
[1729592736689,3.2078,2633.0,2632.7,0.38]
[1729592736690,0.37998,2632.9,2632.7,0.38]
[1729592737282,3.2078,2633.0,2632.7,0.38]
[1729592737587,0.37998,2632.9,2632.8,0.37999]
[1729592737791,3.2078,2633.0,2632.7,0.37999]
[1729592737983,0.37998,2632.9,2632.8,0.37998]
[1729592738187,0.37998,2632.9,2632.8,0.37999]
[1729592738493,3.58781,2633.0,2632.8,0.38002]
[1729592739186,3.58781,2633.0,2632.9,0.38001]
[1729592740384,3.2078,2633.0,2632.4,3.3202]
[1729592740590,3.58781,2633.0,2632.9,0.38001]
[1729592740794,3.58781,2633.0,2632.8,0.38001]
[1729592741092,3.58781,2633.0,2632.9,0.38001]
[1729592741793,3.5878,2633.0,2632.9,0.38001]
[1729592742898,0.38001,2632.9,2632.8,0.38002]
[1729592743094,0.38005,2632.7,2632.6,0.38006]
[1729592743291,0.38005,2632.7,2632.3,3.2078]
[1729592743588,3.2078,2633.0,2632.3,3.2078]
[1729592743589,0.38003,2632.8,2632.3,3.2078]
[1729592743896,3.2078,2633.0,2632.3,3.2078]
[1729592744096,0.38004,2632.8,2632.7,0.38004]
[1729592745193,3.2078,2633.0,2632.3,4.15804]
[1729592745395,0.38002,2632.9,2632.8,0.38003]
[1729592745986,3.2078,2633.0,2632.8,0.38003]
[1729592746191,3.2078,2633.0,2632.9,0.38001]
[1729592746896,3.5878,2633.0,2632.9,0.38001]
[1729592747294,3.2078,2633.0,2632.9,0.38001]
[1729592747500,1.70976978,3910.6,2633.2,0.37997]
[1729592747501,3.2078,2633.3,2633.2,0.37997]
[1729592748001,3.2078,2633.3,2633.2,4.17757]
[1729592748201,3.2078,2633.7,2633.2,3.7976]
[1729592748394,3.2078,2633.7,2633.6,0.37991]
[1729592748595,3.2078,2633.7,2633.1,0.94995]
[1729592748596,3.5877,2633.7,2633.1,0.94995]
[1729592748788,2.74992,2633.6,2633.5,0.37993]
[1729592748997,0.37993,2633.5,2633.4,0.37993]
[1729592749199,2.74992,2633.6,2633.5,0.37993]
[1729592749697,2.37,2633.6,2633.5,0.37993]
[1729592750194,0.37994,2633.5,2633.4,0.37994]
[1729592750396,2.74994,2633.5,2633.4,0.37994]
[1729592750888,2.37,2633.5,2633.4,0.37994]
[1729592751094,5.95771,2633.7,2633.6,0.37991]
[1729592751902,5.5778,2633.7,2632.9,3.2078]
[1729592752093,0.37993,2633.5,2633.4,0.37993]
[1729592752398,0.37992,2633.6,2633.5,0.37992]
[1729592752896,0.37998,2633.2,2633.1,0.37998]
[1729592753100,2.37,2633.2,2633.1,0.37998]
[1729592753302,2.37,2633.3,2633.2,0.37997]
[1729592754706,0.37992,2633.6,2633.5,0.37993]
[1729592754707,2.74992,2633.6,2633.5,0.37993]
[1729592755202,2.74991,2633.6,2633.5,0.37993]
[1729592755890,2.37,2633.6,2633.5,0.37993]
[1729592756097,2.74991,2633.6,2633.5,0.37993]
[1729592756906,2.37,2633.6,2633.5,0.37993]
[1729592758397,3.7968,2633.6,2632.7,1.0391]
[1729592758600,3.2078,2633.2,2633.1,0.37997]